Cogmind - Beta 15 @@@ ROGUE MODE // 2025.09.10 @ 21:53:04 Player: lucasboxerhead Result: Self-destructed Performance ------------- Evolutions (4) 2000 Regions Visited (5) 1000 Robots Destroyed (76) 380 Value Destroyed (1810) 1810 Prototype IDs (1) 20 Alien Tech Used (0) 0 Bonus (75) 75 TOTAL SCORE: 5285 Bonus ------- High Alert Combat Kills 2 Follower Combat Kills 73 Cogmind --------- Core Integrity 652/850 Matter 99/300 Energy 290/290 System Corruption 2% Temperature Warning (330) Movement Treading (246) Ox1 Location -6/Factory Parts ------- > --- POWER (1) -------- Improved Deuterium Engine > --- PROPULSION (4) --- Light Treads Armored Treads Armored Treads > --- UTILITY (6) ------ High-capacity Storage Unit Targeting Computer Improved Targeting Computer Hardened Medium Armor Plating Hardened Medium Armor Plating Hardened Medium Armor Plating > --- WEAPON (4) ------- Heavy Assault Cannon Heavy Assault Cannon > --- INVENTORY (20) --- Improved Deuterium Engine Improved Deuterium Engine Advanced Treads Improved Heat Sink Core Analyzer Hardened Medium Armor Plating Hardened Medium Armor Plating Hardened Medium Armor Plating Hardened Medium Armor Plating Hardened Medium Armor Plating Hardened Medium Armor Plating Hardened Medium Armor Plating Hardened Heavy Armor Plating Heavy Assault Cannon Rocket Launcher Rocket Launcher Peak State ------------ > --- POWER ------------ Improved Deuterium Engine > --- PROPULSION ------- Light Treads Armored Treads Armored Treads Advanced Treads > --- UTILITY ---------- High-capacity Storage Unit Targeting Computer Improved Targeting Computer Hardened Medium Armor Plating Hardened Medium Armor Plating Hardened Medium Armor Plating > --- WEAPON ----------- Heavy Assault Cannon Heavy Assault Cannon > --- INVENTORY -------- Improved Deuterium Engine Improved Deuterium Engine Advanced Treads Improved Signal Interpreter Core Analyzer Hardened Medium Armor Plating Hardened Medium Armor Plating Hardened Medium Armor Plating Hardened Medium Armor Plating Hardened Medium Armor Plating Hardened Medium Armor Plating Hardened Medium Armor Plating Hardened Heavy Armor Plating Heavy Assault Cannon Heavy Assault Cannon Rocket Launcher Rocket Launcher [Rating: 45] Favorites ----------- Power Nuclear Core Engine Ion Engine Power Core Nuclear Core Propulsion Light Treads Treads Light Treads Leg Aluminum Leg Utility Targeting Computer Storage High-capacity Storage Unit Processor Targeting Computer Protection Hardened Medium Armor Plating Weapon Improved Assault Rifle Energy Gun Medium Laser Ballistic Gun Improved Assault Rifle Ballistic Cannon Heavy Assault Cannon Launcher Grenade Launcher Build | -11 -10 -9 -8 -7 -6 ------- Run | Yrd Mat Mat Mat Fac Fac Slots Evolved 8 | . . 2 2 2 2 Power . | . . . . . . Propulsion 2 | . . 1 . . 1 Utility 4 | . . 1 . 2 1 Weapon 2 | . . . 2 . . Parts Attached 51 | 9 4 7 15 4 12 Power 5 | 1 . 1 2 . 1 Engine 4 | 1 . 1 1 . 1 Core 1 | . . . 1 . . Reactor . | . . . . . . Propulsion 16 | 4 . 1 7 . 4 Treads 14 | 2 . 1 7 . 4 Leg 2 | 2 . . . . . Wheel . | . . . . . . Hover . | . . . . . . Flight . | . . . . . . Utility 13 | 1 3 2 . 4 3 Device . | . . . . . . Storage 4 | 1 2 1 . . . Processor 2 | . 1 1 . . . Hackware . | . . . . . . Protection 7 | . . . . 4 3 Artifact . | . . . . . . Weapon 17 | 3 1 3 6 . 4 Energy Gun 3 | 3 . . . . . Energy Cannon . | . . . . . . Ballistic Gun 7 | . . 3 4 . . Ballistic Cannon 3 | . . . . . 3 Launcher 4 | . 1 . 2 . 1 Special Weapon . | . . . . . . Impact Weapon . | . . . . . . Slashing Weapon . | . . . . . . Piercing Weapon . | . . . . . . Special Melee Weapon . | . . . . . . Unidentified Prototypes 1 | . . 1 . . . Parts Lost 5 | . 1 . . . 4 Power 1 | . . . . . 1 Propulsion 2 | . 1 . . . 1 Utility . | . . . . . . Weapon 2 | . . . . . 2 Highest Loss Streak 2 | . 1 . . . 2 To Critical Strikes . | . . . . . . Average Backups 14 | 2 6 12 19 19 17 Power 2 | . 1 1 3 3 2 Propulsion 2 | 1 1 2 5 3 1 Utility 4 | . 1 1 3 5 9 Weapon 5 | . 2 7 7 7 4 Tool/Special . | . . . . . . Unused Backups 42 | . 1 8 9 2 22 Power 3 | . . 1 . . 2 Propulsion 8 | . . 1 4 2 1 Utility 17 | . . 1 2 . 14 Weapon 14 | . 1 5 3 . 5 Tool/Special . | . . . . . . Average Slot Usage (%) 96 | . 99 99 99 99 88 Engine 6 | . 14 11 3 . 4 Core 2 | . . . 5 7 1 Treads 26 | . 24 33 26 23 25 Storage 9 | . 14 10 9 7 6 Processor 15 | . 13 21 18 15 13 Protection 6 | . . . . 14 19 Energy Gun 4 | . 16 1 . . . Ballistic Gun 13 | . . 9 31 23 4 Ballistic Cannon 2 | . . . . . 10 Launcher 6 | . 11 11 4 7 1 Peak Build Rating 45 | 6 8 16 28 32 45 Average Rating 23 | 4 6 12 26 31 43 On Entrance 14 | . 6 7 15 26 32 Naked Turns . | . . . . . . Heaviest Build 98 | 12 30 53 62 66 98 Greatest Support 82 | 40 40 60 60 60 82 Greatest Overweight (x) 1 | . . . 1 1 1 Average Overweight (x) . | . . . . 1 . Largest Inventory Capacity 20 | 8 15 20 20 20 20 Average Capacity 17 | 6 11 19 20 20 20 Most Carried 20 | 4 10 20 20 20 20 Average Carried 15 | 2 6 12 19 19 19 Final Capacity 20 | 8 15 20 20 20 20 Final Carried 20 | 4 7 15 20 20 18 Class Distribution -------------------- 40% | Mutant 31% | Gunner 20% | Tank 7% | Bomber Dominant Class ---------------- Mutant | -10/Materials Mutant | -9/Materials Gunner | -8/Materials Gunner | -7/Factory Tank | -6/Factory Resources | -11 -10 -9 -8 -7 -6 ----------- Run | Yrd Mat Mat Mat Fac Fac Matter Collected 1657 | 125 214 182 535 147 454 Remotely . | . . . . . . Salvage Created 2244 | . 258 387 1128 67 404 Parts 141 | . 16 45 65 2 13 Haulers Intercepted 7 | . 1 3 2 . 1 Recyclers Shooed 1 | . 1 . . . . Parts Field Recycled . | . . . . . . Retrieved Matter . | . . . . . . Parts Self-Destructed . | . . . . . . Prevented . | . . . . . . Kills | -11 -10 -9 -8 -7 -6 ------- Run | Yrd Mat Mat Mat Fac Fac Combat Hostiles Destroyed 49 | . 9 7 23 1 9 Guns 34 | . 6 5 21 1 1 Cannons 8 | . . . . . 8 AOE 6 | . 2 2 2 . . Classes Destroyed 13 | . 4 5 3 . 1 Worker 4 | . . 2 2 . . Builder 6 | . . 4 2 . . Tunneler 2 | . 1 . . . 1 Hauler 7 | . 1 3 2 . 1 Recycler 2 | . . . 2 . . Mechanic 2 | . . 2 . . . Operator 1 | . . . 1 . . Watcher 2 | . . 1 . . 1 Swarmer 22 | . 6 4 6 . 6 Grunt 14 | . 3 1 10 . . Brawler 3 | . . . 2 . 1 Sentry 10 | . . 2 5 1 2 Programmer 1 | . . . . . 1 Best Kill Streak 14 | . 3 14 12 1 5 Combat Bots Only 7 | . 3 5 7 1 4 Max Kills in Single Turn 7 | . 3 7 3 1 2 Gunslinging 1 | . . . 1 . . Exploded 2 | . 2 2 1 . . Melee . | . . . . . . Uniques/NPCs Destroyed . | . . . . . . Combat | -11 -10 -9 -8 -7 -6 -------- Run | Yrd Mat Mat Mat Fac Fac Hostile Shots Fired 435 | . 41 37 93 42 222 Missed 135 | . 11 10 27 12 75 Hits 300 | . 30 27 66 30 147 Projectile 300 | . 30 27 66 30 147 Critical Strikes 5 | . . 2 2 . 1 Damage Taken 3734 | . 479 259 863 227 1906 Core 526 | . 144 51 110 23 198 Absorbed by Shields . | . . . . . . Core Remaining (%) 81 | 100 42 87 80 96 . Volleys Fired 157 | . 52 29 45 4 27 Largest 4 | . 2 2 4 3 3 Hottest 102 | . 80 53 102 69 100 Shots Fired 319 | . 64 33 153 12 57 Gun 258 | . 63 29 145 12 9 Cannon 48 | . . . . . 48 Launcher 13 | . 1 4 8 . . Special . | . . . . . . Kinetic 243 | . . 29 145 12 57 Thermal 63 | . 63 . . . . Explosive 13 | . 1 4 8 . . Electromagnetic . | . . . . . . Robot Hit Streak 48 | . 6 7 48 12 6 Robot Miss Streak 5 | . 3 2 2 . 5 Penetration Max . | . . . . . . Secondary Targets 5 | . . . 5 . . Max Gunslinging Chain 1 | . . . 1 . . Shots Hit Robots 202 | . 38 23 103 11 27 Core Hits 120 | . 15 25 66 3 11 Critical Kills . | . . . . . . Critical Parts Destroyed 1 | . . . 1 . . Critical Strikes 15 | . 8 . 1 . 6 Burn 8 | . 8 . . . . Destroy 1 | . . . 1 . . Blast 6 | . . . . . 6 Melee Attacks . | . . . . . . Impact . | . . . . . . Slashing . | . . . . . . Piercing . | . . . . . . Sneak Attacks . | . . . . . . Combat Hostiles . | . . . . . . Follow-up Attacks . | . . . . . . Damage Inflicted 5950 | . 582 1166 2527 159 1516 Guns 2544 | . 465 295 1566 159 59 Cannons 1455 | . . . . . 1455 Explosions 1938 | . 106 871 961 . . Melee . | . . . . . . Ramming 13 | . 11 . . . 2 Kinetic 3534 | . . 295 1566 159 1514 Thermal 1003 | . 465 538 . . . Explosive 1400 | . 106 333 961 . . Electromagnetic . | . . . . . . Impact . | . . . . . . Slashing . | . . . . . . Piercing . | . . . . . . Highest Corruption 2 | . . . . . 2 Average Corruption 1 | . . . . . 1 Corruption Purged . | . . . . . . Corruption Blocked . | . . . . . . Effects 5 | . . . . . 5 Message Errors 2 | . . . . . 2 Matter Fused 1 | . . . . . 1 Heat Flow Errors 1 | . . . . . 1 Energy Discharges 1 | . . . . . 1 Overload Shots . | . . . . . . Overflow Damage 363 | . . 129 6 . 228 Projectiles 228 | . . . . . 228 Explosions 135 | . . 129 6 . . Melee . | . . . . . . Knockbacks 7 | . . . . . 7 Impact . | . . . . . . Kinetic 7 | . . . . . 7 Secondary . | . . . . . . Self-Inflicted Damage . | . . . . . . Shots . | . . . . . . Rammed 3 | . 2 . . . 1 Targets Rammed 3 | . 2 . . . 1 Kicked . | . . . . . . Crushed . | . . . . . . Highest Temperature 517 | . 162 14 213 42 517 Average Temperature 73 | . 43 5 59 27 114 Received Heat Transfer 606 | . 30 75 369 60 72 Effects 4 | . . . . . 4 Shutdowns 2 | . . . . . 2 Damage (minor) 1 | . . . . . 1 Damage (core) 1 | . . . . . 1 Siege Activations . | . . . . . . Martial Activations . | . . . . . . Shielding Activations . | . . . . . . Robots Disrupted . | . . . . . . Combat Hostiles . | . . . . . . Robots Corrupted . | . . . . . . Combat Hostiles . | . . . . . . Parts Fried . | . . . . . . Impact Corruptions . | . . . . . . Robots Melted 1 | . 1 . . . . Combat Hostiles 1 | . 1 . . . . Parts Melted 3 | . 2 . . 1 . Heat Transferred 2279 | . 1879 400 . . . Parts Sabotaged . | . . . . . . Parts Stolen . | . . . . . . Parts Stripped . | . . . . . . Power Chain Reactions . | . . . . . . Alert | -11 -10 -9 -8 -7 -6 ------- Run | Yrd Mat Mat Mat Fac Fac Maximum Alert Level 2 | . . 1 2 . . Low Security (%) 83 | 100 100 58 56 100 100 Level 1 15 | . . 41 42 . . Level 2 . | . . . 1 . . Level 3 . | . . . . . . Level 4 . | . . . . . . Level 5 . | . . . . . . High Security . | . . . . . . Max Security . | . . . . . . Peak Influence 417 | . 90 233 417 189 117 Initial 189 | . . . 76 189 . Average 76 | . 17 119 168 74 23 Influence Increases 1757 | . 241 347 755 32 382 Destroy 0b10 Robot/C 1020 | . 180 140 460 20 220 Destroy 0b10 Robot/NC 140 | . 10 60 45 . 25 Destroy Leader 262 | . 42 38 114 10 58 Allied During Kill 17 | . . . . 2 15 Successful Hack 22 | . . . 16 . 6 Disable Machine 150 | . . 60 60 . 30 Destroy Structure 116 | . 9 34 45 . 28 Lose Combat Pursuer 30 | . . 15 15 . . Influence Decreases 1670 | . 241 165 520 449 295 Entered New Map 334 | . . . 106 228 . Time Decay 1304 | . 231 165 414 221 273 Lost Part 30 | . 10 . . . 20 Lost Ally 2 | . . . . . 2 Squads Dispatched 6 | . 2 . 1 . 3 Investigation 2 | . 1 . . . 1 Extermination 1 | . . . . . 1 Reinforcement 3 | . 1 . 1 . 1 Assault . | . . . . . . Garrison . | . . . . . . Intercept . | . . . . . . Searches Triggered . | . . . . . . Construction Impeded 1 | . . . . . 1 Haulers Reinforced . | . . . . . . Active Scanning Responses . | . . . . . . Cargo Convoy Interrupts . | . . . . . . Stealth | -11 -10 -9 -8 -7 -6 --------- Run | Yrd Mat Mat Mat Fac Fac Distress Signals 7 | . 1 1 4 . 1 Communications Jammed . | . . . . . . Distress Signals . | . . . . . . Times Spotted 87 | . 17 10 36 1 23 Peak Tracking Total 5 | . 4 5 5 1 4 Tactical Retreats 2 | . . 1 1 . . Traps | -11 -10 -9 -8 -7 -6 ------- Run | Yrd Mat Mat Mat Fac Fac Traps Triggered 3 | . 2 . 1 . . Indirectly . | . . . . . . Trap Hack Attempts . | . . . . . . Triggered . | . . . . . . Disarmed . | . . . . . . Reprogrammed . | . . . . . . Reused . | . . . . . . Traps Extracted . | . . . . . . Installed . | . . . . . . Triggered . | . . . . . . Machines | -11 -10 -9 -8 -7 -6 ---------- Run | Yrd Mat Mat Mat Fac Fac Machines Disabled 10 | . . 4 4 . 2 Max in Single Turn 2 | . . 2 1 . 1 Machines Repaired . | . . . . . . Machines Dismantled . | . . . . . . Machines Sabotaged . | . . . . . . Overloaded Fab Kills . | . . . . . . Hacking | -11 -10 -9 -8 -7 -6 --------- Run | Yrd Mat Mat Mat Fac Fac Machines Accessed 7 | . 1 . 1 2 3 Terminals 4 | . 1 . 1 . 2 Fabricators 3 | . . . . 2 1 Repair Stations . | . . . . . . Recycling Units . | . . . . . . Scanalyzers . | . . . . . . Garrison Access . | . . . . . . Total Hacks 12 | . 1 . 2 3 6 Successful 6 | . 1 . 1 2 2 Failed 6 | . . . 1 1 4 Catastrophic 1 | . . . 1 . . Database Lockouts . | . . . . . . Manual 2 | . 1 . 1 . . Terminals 8 | . 1 . 2 . 5 Fabricators 4 | . . . . 3 1 Repair Stations . | . . . . . . Recycling Units . | . . . . . . Scanalyzers . | . . . . . . Garrison Access . | . . . . . . Terminal Hacks 3 | . 1 . 1 . 1 Record 1 | . . . 1 . . Open DSF 1 | . . . . . 1 Dispatch Records 1 | . 1 . . . . Fabricator Hacks 3 | . . . . 2 1 Network Status 1 | . . . . 1 . Build 2 | . . . . 1 1 Repair Station Hacks . | . . . . . . Recycling Unit Hacks . | . . . . . . Scanalyzer . | . . . . . . Garrison Access Hacks . | . . . . . . Unauthorized Hacks . | . . . . . . Terminals . | . . . . . . Fabricators . | . . . . . . Repair Stations . | . . . . . . Recycling Units . | . . . . . . Scanalyzers . | . . . . . . Garrison Access . | . . . . . . Data Cores Recovered . | . . . . . . Used . | . . . . . . Hacking Detections 5 | . 1 . 1 1 2 Full Trace Events 1 | . . . . . 1 Feedback Events . | . . . . . . Feedback Blocked . | . . . . . . Robot Schematics Acquired . | . . . . . . Robots Built 6 | . . . . 3 3 Authchips . | . . . . . . Time 250 | . . . . 116 134 Total Robot Build Rating 21 | . . . . 9 12 Part Schematics Acquired . | . . . . . . Parts Built . | . . . . . . Authchips . | . . . . . . Time . | . . . . . . Total Part Build Rating . | . . . . . . Parts Repaired . | . . . . . . Time . | . . . . . . Parts Recycled . | . . . . . . Recycled Matter . | . . . . . . Retrieved Matter . | . . . . . . Retrieved Components . | . . . . . . Parts Scanalyzed . | . . . . . . Part Schematics Acquired . | . . . . . . Parts Damaged . | . . . . . . Bothacking | -11 -10 -9 -8 -7 -6 ------------ Run | Yrd Mat Mat Mat Fac Fac Used RIF Installer . | . . . . . . Robots Hacked . | . . . . . . Non-combat . | . . . . . . Combat . | . . . . . . Robot Hacks Applied . | . . . . . . Relay Couplers Released . | . . . . . . Fabnet Peak Effective % . | . . . . . . Robots Rewired . | . . . . . . Allies Hacked 1 | . . . . . 1 Hacks Repelled . | . . . . . . Allies | -11 -10 -9 -8 -7 -6 -------- Run | Yrd Mat Mat Mat Fac Fac Total Allies 6 | . . . . 3 3 Largest Group 3 | . . . . 3 3 Highest-Rated Group 60 | . . . . 48 60 Highest-Rated Ally 20 | . . . . 16 20 Total Orders . | . . . . . . Ally Attacks 21 | . . . . 5 16 Total Damage 397 | . . . . 67 330 Kills 4 | . . . . . 4 Allies Corrupted . | . . . . . . Allies Melted . | . . . . . . Intel | -11 -10 -9 -8 -7 -6 ------- Run | Yrd Mat Mat Mat Fac Fac Active Infowar (turns) . | . . . . . . Robot Analysis Total . | . . . . . . Derelict Logs Recovered . | . . . . . . Drone Launches . | . . . . . . Drone Recoveries . | . . . . . . Exploration | -11 -10 -9 -8 -7 -6 ------------- Run | Yrd Mat Mat Mat Fac Fac Turns Passed 4121 | 113 1044 507 1058 517 882 Spaces Moved 1874 | 74 583 255 470 188 304 Core 5 | 5 . . . . . Treads 1731 | 15 499 255 470 188 304 Legs 138 | 54 84 . . . . Wheels . | . . . . . . Hover . | . . . . . . Flight . | . . . . . . Fastest Speed 50 | 50 120 160 160 240 156 Average Speed 181 | 123 154 160 179 240 231 Slowest Speed 241 | 160 160 160 240 240 241 Overloaded Moves . | . . . . . . Propulsion Burnouts . | . . . . . . Robots Hopped . | . . . . . . Potential Cave-ins . | . . . . . . Cave-ins Triggered . | . . . . . . Exploration Rate (%) 27 | 5 63 32 51 6 8 Regions Visited 5 Branch Regions . Pre-discovered Areas . | . . . . . . Known Exits Taken . | . . . . . . Unknown Exits Taken 5 | 1 1 1 1 1 . Scrap Searched . | . . . . . . Spaces Dug . | . . . . . . Terrain Destroyed 110 | . 7 34 44 . 25 Melee . | . . . . . . Projectile 25 | . . . . . 25 AOE 85 | . 7 34 44 . . Terrain Rammed . | . . . . . . Walls Destroyed . | . . . . . . Machines Disabled . | . . . . . . Actions | -11 -10 -9 -8 -7 -6 --------- Run | Yrd Mat Mat Mat Fac Fac Total 2344 | 92 663 333 596 248 412 Wait 123 | 6 7 8 20 46 36 Move 1869 | 73 582 254 469 187 304 Hop . | . . . . . . Pick Up 61 | 1 7 20 20 3 10 Fast Attach 20 | 9 2 2 4 . 3 Attach 12 | . 1 3 2 2 4 Detach 8 | 3 1 2 1 . 1 Swap 26 | . 4 2 12 2 6 Drop 64 | . 5 13 23 4 19 Fire 157 | . 52 29 45 4 27 Melee . | . . . . . . Ram . | . . . . . . Kick . | . . . . . . Crush 3 | . 2 . . . 1 Escape Stasis . | . . . . . . Rewire 1 | . . . . . 1 Trap . | . . . . . . Miscellaneous . | . . . . . . Route ------- -11/Scrapyard -10/Materials -9/Materials (discovered 2 exits: *Mat / [*Min]) -8/Materials -7/Factory -6/Factory History --------- Turn | Location | Event 12 | -11/Scrapyard | Discovered new exit (range 16) 114 | -11/Scrapyard | Entered Materials 268 | -10/Materials | Core integrity fell below 50% 312 | -10/Materials | Build established: Mutant 932 | -10/Materials | Discovered new exit (range 4) 1158 | -10/Materials | Entered another Materials area 1158 | -9/Materials | Evolved 2 slots: Propulsion x1, Utility x1 1408 | -9/Materials | Discovered new exit (range 15) 1630 | -9/Materials | Discovered new exit (range 15) 1665 | -9/Materials | Entered another Materials area 1665 | -8/Materials | Evolved 2 slots: Weapon x2 1955 | -8/Materials | Build established: Bomber 2263 | -8/Materials | Build established: Gunner 2309 | -8/Materials | Destroyed 7 combat bots 2595 | -8/Materials | Discovered new exit (range 9) 2723 | -8/Materials | Entered Factory 2723 | -7/Factory | Evolved 2 slots: Utility x2 2898 | -7/Factory | Fabricated G-47 Trooper (x3) 3152 | -7/Factory | Discovered new exit (range 13) 3240 | -7/Factory | Entered another Factory area 3240 | -6/Factory | Accompanied by 1 ally 3240 | -6/Factory | Evolved 2 slots: Propulsion x1, Utility x1 3561 | -6/Factory | Build established: Tank 3681 | -6/Factory | Fabricated B-48 Gladiator (x3) 3710 | -6/Factory | P-60 Hacker assimilated allied Gladiator 5a 4122 | -6/Factory | Self-destructed Last Messages --------------- 04098_ Overheating: Core damaged (-85). 04099_ Overheating: Hvy. Assault Cannon damaged (-92). 04099_ Penetrated by Slug. 04101_ Power failure, Imp. Deuterium Engine shutdown. 04107_ Slug penetrates Wall. 04107_ Hvy. Assault Cannon destroyed. 04107_ Slug penetrates Wall. 04113_ 04118_ Adv. Treads destroyed. 04119_ U-05 Engineer builds a Wall. 04120_ Slug penetrates Wall. 04121_ Power failure, Imp. Deuterium Engine shutdown. Map ----- +----------------------------------------------------+ | """ #???????????????????????????????????????????? | | ????????????????????????????????????????????? | | ?????????????????????????????????????????????? | | ????######????????????????????????????????????? | | +####### =]!#????????????????????????????????????? | | / =]!#?????????"??????????????????????????? | | #### ]]!#????????"???????????????????????????? | | #??# #??????? ????????????????????????????? | | #??#! #????? ?????????????????????????????? | | #########?####/#?????????????????????????????? | | ########T # #######???????????????????????? | | +???????????????????????? | | % # ???????????????????? | | % # ???????????????????? | | + ????????????????????? | | # ""???????????????????? | | #???????????????????????? | | =!= =%% #???????????????????????? | | ! | %%==####???????????????????????? | | ##############[##?????????????????????????? | | #?###????????#%##?????????????????????????? | | #????#########+####???????????????????????? | | ###### = %%% #???????????????????????? | | + %=% #???????????????????????? | | # """"""""" *##;#;# ##???????????????? | | ! ! "" # @ % hu ; ????????? | | !! T" # """"""""" #;;;;;###???????????????? | | ! "" # ## ! ] h !??????????????? | | +?""""""""" #? h +????????????? | | #?? #??""" """ #????????????? | | #??"""""""" [#???"" """ #????????????? | | #############??? #????" """??????????????? | | ????????????????""""""" #????" "???????????????? | | ?????????????????? #???????????????????????? | | ??????????????????########???????????????????????? | | ?????????????????????????????????????????????????? | | ?????????????????????????????????????????????????? | | ?????????????????????????????????????????????????? | | ?????????????????????????????????????????????????? | | ?????????????????????????????????????????????????? | | ?????????????????????????????????????????????????? | | ?????????????????????????????????????????????????? | | ?????????????????????????????????????????????????? | | ?????????????????????????????????????????????????? | | ?????????????????????????????????????????????????? | | ?????????????????????????????????????????????????? | | ?????????????????????????????????????????????????? | | ?????????????????????????????????????????????????? | | ?????????????????????????????????????????????????? | | ?????????????????????????????????????????????????? | +----------------------------------------------------+ Best States ------------- Heat Dissipation 37 Energy Generation 16 Energy Capacity 290 Matter Stores 290 Matter Capacity 300 Sight Range 16 Terrain Scan Density 10 Armor Coverage 675 Evasion (%) 55 Targeting Accuracy 11 Recoil Reduction 4 Item Schematics ----------------- None Robot Schematics ------------------ None Fabricated ------------ G-47 Trooper | x3 | -7/Factory | Preloaded B-48 Gladiator | x3 | -6/Factory | Preloaded Repaired ---------- Nothing Alien Tech Used ----------------- None Achievements -------------- My Command Is Your Wish Challenges ------------ None Game ------ Seed PhasingInsulatedShell Manual? 0 Play Time 00:27:26 Cumulative 20.1 hours Start 2025.09.10 @ 21:27:14 End 2025.09.10 @ 21:53:04 Sessions 1 Manual Loads 0 Difficulty Rogue Special Mode None Game No. 88 Rogue 85 Adventurer 3 Explorer 0 Win Type - Total 0 Types 0/0/0/0/0/0/0/0/0/0 Lore% 8 Gallery% 20 Achievement% 19 Wizard Run 0 Options --------- Layout 0 ASCII 0 Keyboard 1 Movement Numpad Keybinds 0 Fullscreen 1 Font 18/SmallcapsGlow Map View 76x50 Zoom Use 0% Tactical HUD 1 Map Filters NONE Filters NONE Steam 1 RUN: 45f403a2-6396-449f-af99-d6dc25243c76